fUST/lending_fUST_20240806
["ID","MTS","AMOUNT","RATE_DAILY","PERIOD"]
[334285366,1722892148157,-1068.61527021,0.00019477,2]
[334285367,1722892148178,-1610.68802731,0.00019547,2]
[334285368,1722892148204,-240.82219567,0.00019547,2]
[334285369,1722892148227,-302.81833017,0.00019899,2]
[334285370,1722892148249,-912.4763458,0.00019999,2]
[334285371,1722892148273,-206.48402325,0.00019999,2]
[334285372,1722892148294,-154.55950541,0.00019999,2]
[334285373,1722892148317,-206.54565233,0.00019999,2]
[334285374,1722892148338,-404.72502915,0.00019999,2]
[334285375,1722892148360,-3785.54866294,0.00019999,2]
[334285376,1722892148381,-1493.00802259,0.00019999,2]
[334285377,1722892148403,-3620.01631471,0.00019999,2]
[334285378,1722892148424,-154.55950541,0.00019999,2]
[334285379,1722892148445,-218.345205,0.00019999,2]
[334285380,1722892148467,-891.47766628,0.00019999,2]
[334285381,1722892148487,-165.54898858,0.00019999,2]
[334285382,1722892148509,-154.79103211,0.00019999,2]
[334285383,1722892148530,-694.17770919,0.00019999,2]
[334285384,1722892148554,-156.35315554,0.0002,2]
[334285385,1722892148576,-1866.36606141,0.0002,2]
[334285386,1722892152124,-943.47872559,0.00019451,2]
[334285387,1722892153094,-153.46636879,0.00019451,2]
[334285388,1722892160141,-535.04606385,0.00019451,2]
[334285389,1722892162325,-507.17705671,0.00019451,2]
[334285390,1722892162347,-531.67525338,0.00019999,2]
[334285391,1722892162369,-209.85118264,0.00019999,2]
[334285392,1722892162391,-269.69558364,0.00019999,2]
[334285393,1722892162412,-258.09666271,0.00019999,2]
[334285394,1722892162435,-403.7082582,0.00019999,2]
[334285395,1722892162457,-2314.65719156,0.0002,2]
[334285396,1722892162479,-294.09032939,0.0002,2]
[334285397,1722892162500,-222.17296089,0.0002,2]
[334285398,1722892162522,-435.0,0.0002,2]
[334285399,1722892162544,-938.15208204,0.0002,2]
[334285400,1722892162570,-500.0,0.00020255,2]
[334285401,1722892162591,-159.98140171,0.00020255,2]
[334285402,1722892162613,-16447.4824266,0.00020256,2]
[334285403,1722892162636,-420.38579752,0.0002028,4]
[334285404,1722892162656,-494.194417,0.0002028,2]
[334285405,1722892162677,-493.99436561,0.0002028,2]
[334285406,1722892162697,-426.9441554,0.0002028,2]
[334285407,1722892162717,-540.38303746,0.00020721,2]
[334285408,1722892162738,-427.3328344,0.00020721,2]
[334285409,1722892162760,-452.60283055,0.00020721,2]
[334285410,1722892162782,-272.97423677,0.00021,2]
[334285411,1722892162804,-242.28642096,0.0002142,2]
[334285412,1722892162832,-236.21706747,0.00021599,2]
[334285413,1722892162853,-194.10374007,0.00021642,2]
[334285414,1722892162874,-616.97897138,0.00021916,2]
[334285415,1722892162896,-223.45363636,0.00021916,2]
[334285416,1722892162919,-256.006286,0.00021916,2]
[334285417,1722892162942,-176.8550048,0.00021916,2]
[334285418,1722892162964,-461.70419097,0.00025,30]
[334285419,1722892162986,-154.55950541,0.00025,2]
[334285420,1722892163007,-660.96113675,0.00025074,2]
[334285421,1722892163028,-622.04805684,0.00026327,2]
[334285422,1722892163050,-402.3465429,0.00026589,2]
[334285423,1722892163080,-167.65,0.000266,31]
[334285424,1722892163102,-477.20397054,0.00027779,2]
[334285425,1722892163126,-477.2039705,0.00027782,2]
[334285426,1722892163147,-477.2039705,0.00027785,2]
[334285427,1722892163169,-477.2039705,0.00027787,2]
[334285428,1722892163193,-901.20117937,0.0002779,2]
[334285429,1722892163214,-477.2039705,0.0002779,2]
[334285430,1722892163237,-11071.59,0.00027862,3]
[334285431,1722892163258,-9226.33,0.00027862,3]
[334285432,1722892163283,-7688.61,0.00027862,3]
[334285433,1722892163306,-192655.71814901,0.00027872,3]
[334285434,1722892168194,-402.3465429,0.00026583,2]
[334285435,1722892168220,-29730.51565799,0.00027872,3]
[334285436,1722892168412,-2000.0,0.00027879,10]
[334285437,1722892168437,-1009.65895654,0.00027879,10]
[334285438,1722892168461,-500.0,0.00027881,2]
[334285439,1722892168484,-500.0,0.00027881,2]
[334285440,1722892168505,-500.0,0.00027881,2]
[334285441,1722892168527,-500.0,0.00027881,2]
[334285442,1722892168548,-500.0,0.00027881,2]
[334285443,1722892168574,-308.92144379,0.00027881,2]
[334285444,1722892168596,-500.0,0.00027881,2]
[334285445,1722892168617,-231523.76960709,0.00027882,30]
[334285446,1722892173109,-258.09666271,0.00019999,2]
[334285447,1722892173131,-881.47696693,0.00024241,2]
[334285448,1722892173382,170.84242606,0.00021048,2]
[334285449,1722892174101,-71.4439949,0.00021048,2]
[334285450,1722892174123,-6407.17,0.00027872,3]
[334285451,1722892174146,-17135.76762931,0.00027881,21]
[334285452,1722892174167,-5232.59970803,0.00027881,21]
[334285453,1722892174189,-58211.12938804,0.00027882,30]
[334285454,1722892213337,1850.24276108,0.0002,10]
[334285455,1722892228706,154.6856941,0.00014247,2]
[334285491,1722892232491,-3.8685719,0.00014247,2]
[334285493,1722892232500,-300.10160331,0.0002,2]
[334285495,1722892232510,-240.65931876,0.00023577,2]
[334285537,1722892238545,-397.23920155,0.00023577,2]
[334285538,1722892238554,-1374.62941903,0.00023577,2]
[334285539,1722892238563,-154.55950541,0.00023577,2]
[334285540,1722892238573,-23.57187401,0.00023577,2]
[334285568,1722892240928,-165.73090826,0.00023577,2]
[334285569,1722892240939,-408.90728671,0.00023577,2]
[334285570,1722892240949,-270.38247174,0.00023577,2]
[334285571,1722892240958,-3843.9733938,0.00023577,2]
[334285572,1722892240968,-194.54850496,0.00023577,2]
[334285573,1722892240978,-644.06573407,0.00023577,2]
[334285574,1722892240988,-299.20555684,0.00025,2]
[334285575,1722892240997,-402.3465429,0.00025,2]
[334285576,1722892241007,-158.554266,0.00026521,2]
[334285577,1722892241017,-784.36178699,0.0002779,2]
[334285578,1722892241027,-811.08106137,0.0002779,2]
[334285579,1722892241037,-5339.31,0.00027872,3]
[334285580,1722892241047,-4449.43,0.00027872,3]
[334285581,1722892241056,-115268.19806105,0.00027882,30]
[334285582,1722892241069,-580.47988559,0.00027882,30]
[334285602,1722892243789,-5474.4504116,0.00025,30]
[334285605,1722892243801,-6382.87529954,0.00025,30]
[334285606,1722892244104,1495.47226162,0.0002,10]
[334285610,1722892246740,-637.89852031,0.00021916,2]
[334285611,1722892246751,-345.00963955,0.00025,30]
[334285612,1722892246761,-115888.0236946,0.00027882,30]
[334285613,1722892246772,-654.0,0.00027882,30]
[334285614,1722892251941,5000.0,0.0002,10]
[334285615,1722892260574,5000.0,0.0002,10]
[334285616,1722892268645,5000.0,0.0002,10]
[334285617,1722892277740,334.11915004,0.0002,10]
[334285618,1722892301073,223.69545424,0.0002,10]
[334285619,1722892353972,5000.0,0.0002,10]
[334285620,1722892361749,1660.95778281,0.0002,10]
[334285621,1722892362065,507.22115417,0.00024242,60]
[334285623,1722892545650,273.37336231,9.9e-05,2]
[334285624,1722892553475,273.37336231,9.9e-05,2]
[334285625,1722892561562,273.37336231,9.9e-05,2]
[334285626,1722892569618,273.37336231,9.9e-05,2]
[334285627,1722892577729,273.37336231,9.9e-05,2]
[334285628,1722892585489,273.37336231,9.9e-05,2]
[334285629,1722892594839,273.37336231,9.9e-05,2]
[334285631,1722892602982,273.37336231,9.9e-05,2]
[334285632,1722892610113,6534.77534404,9.9e-05,2]
[334285633,1722892611099,273.37336231,9.9e-05,2]
[334285634,1722892614320,1492.75012023,9.9e-05,2]
[334285635,1722892619588,273.37336231,9.9e-05,2]
[334285636,1722892623675,11466.23735052,9.9e-05,2]
[334285637,1722892624112,404.79643592,9.9e-05,2]
[334285638,1722892624860,2507.25549489,9.9e-05,2]
[334285639,1722892628228,273.37336231,9.9e-05,2]
[334285640,1722892630708,2109.13684804,9.9e-05,2]
[334285641,1722892631758,1973.90176712,9.9e-05,2]
[334285642,1722892633479,154.77542449,9.9e-05,2]
[334285643,1722892636649,273.37336231,9.9e-05,2]
[334285644,1722892640124,404.79643592,9.9e-05,2]
[334285645,1722892644690,273.37336231,9.9e-05,2]
[334285646,1722892653682,273.37336231,9.9e-05,2]
[334285647,1722892661764,273.37336231,9.9e-05,2]
[334285648,1722892669722,273.37336231,9.9e-05,2]
[334285649,1722892674146,355.44555107,0.00012,2]
[334285650,1722892679129,273.37336231,9.9e-05,2]
[334285651,1722892687115,273.37336231,9.9e-05,2]
[334285652,1722892695703,273.37336231,9.9e-05,2]
[334285653,1722892704138,273.37336231,9.9e-05,2]
[334285654,1722892712601,273.37336231,9.9e-05,2]
[334285655,1722892720426,273.37336231,9.9e-05,2]
[334285656,1722892729025,273.37336231,9.9e-05,2]
[334285657,1722892736998,273.37336231,9.9e-05,2]
[334285658,1722892745017,273.37336231,9.9e-05,2]
[334285659,1722892753405,273.37336231,9.9e-05,2]
[334285660,1722892761443,273.37336231,9.9e-05,2]
[334285661,1722892769252,273.37336231,9.9e-05,2]
[334285662,1722892777244,273.37336231,9.9e-05,2]
[334285663,1722892785053,273.37336231,9.9e-05,2]
[334285664,1722892793165,273.37336231,9.9e-05,2]
[334285665,1722892801005,273.37336231,9.9e-05,2]
[334285666,1722892809493,273.37336231,9.9e-05,2]
[334285667,1722892811269,209.85118264,0.00012,2]
[334285668,1722892817352,273.37336231,9.9e-05,2]
[334285669,1722892825979,273.37336231,9.9e-05,2]
[334285670,1722892834335,273.37336231,9.9e-05,2]
[334285671,1722892842385,273.37336231,9.9e-05,2]
[334285672,1722892850750,273.37336231,9.9e-05,2]
[334285673,1722892853053,160.15094004,0.00012,2]
[334285674,1722892858881,273.37336231,9.9e-05,2]
[334285675,1722892866845,273.37336231,9.9e-05,2]
[334285676,1722892874906,168.52529543,9.9e-05,2]
[334285677,1722892920586,155.78874176,0.00012,2]
[334285678,1722893000988,1621.05384492,0.00012,2]
[334285682,1722893049164,380.41507054,0.00012,2]
[334285683,1722893083778,244.82593148,9.999e-05,2]
[334285684,1722893137041,4668.41412389,0.0001212,2]
[334285685,1722893146139,-164.97678,0.00014247,2]
[334285686,1722893146161,-241.58470593,0.00015,2]
[334285687,1722893234115,-1900.3792126,0.00019295,2]
[334285688,1722893234138,-1456.65490575,0.00019547,2]
[334285689,1722893249090,-154.79277577,0.00015,2]
[334285690,1722893249116,-154.54409492,0.00015,2]
[334285691,1722893249141,-250.0,0.00019717,2]
[334285692,1722893249165,-250.0,0.00019772,2]
[334285693,1722893249188,-250.0,0.00019826,2]
[334285694,1722893249211,-250.0,0.0001988,2]
[334285695,1722893249233,-250.0,0.00019894,2]
[334285696,1722893249256,-250.0,0.00019934,2]
[334285697,1722893249278,-250.0,0.00019988,2]
[334285698,1722893249300,-664.18424721,0.00019999,2]
[334285699,1722893249322,-250.35702584,0.00019999,2]
[334285700,1722893249344,-270.38247174,0.0002,2]
[334285701,1722893249371,-250.0,0.00020042,2]
[334285702,1722893249394,-250.0,0.00020096,2]
[334285703,1722893249417,-250.0,0.0002015,2]
[334285704,1722893249440,-250.0,0.00020204,2]
[334285705,1722893249464,-250.0,0.00020258,2]
[334285706,1722893249486,-300.0,0.00020279,2]
[334285707,1722893249509,-300.0,0.00020279,2]
[334285708,1722893249533,-9.98805419,0.0002028,2]
[334285709,1722893249567,-622.08644926,0.0002028,2]
[334285710,1722893249589,-808.0041696,0.0002028,2]
[334285711,1722893249609,-156.5983355,0.0002028,2]
[334285712,1722893249634,-341.49741289,0.0002028,2]
[334285713,1722893249656,-1108.88728873,0.0002028,2]
[334285714,1722893249678,-1075.48864695,0.0002028,2]
[334285715,1722893249701,-250.0,0.00020312,2]
[334285716,1722893249723,-250.0,0.00020366,2]
[334285717,1722893249744,-250.0,0.0002042,2]
[334285718,1722893249765,-455.419633,0.00020474,2]
[334285719,1722893249787,-250.0,0.00020475,2]
[334285720,1722893249809,-250.0,0.00020529,2]
[334285721,1722893249831,-250.0,0.00020583,2]
[334285722,1722893249853,-250.0,0.00020637,2]
[334285723,1722893249875,-250.0,0.00020691,2]
[334285724,1722893249896,-154.54409492,0.00020721,2]
[334285725,1722893249919,-154.79103211,0.00020721,2]
[334285726,1722893249940,-951.80625463,0.00020721,2]
[334285727,1722893249961,-194.58009581,0.00020721,2]
[334285728,1722893249983,-157.60825071,0.00020721,2]
[334285729,1722893250006,-250.0,0.00020745,2]
[334285730,1722893250028,-1321.96395184,0.00020999,2]
[334285731,1722893250051,-154.93000355,0.00020999,2]
[334285732,1722893250072,-154.54409492,0.00020999,2]
[334285733,1722893250093,-408.90728671,0.00020999,2]
[334285734,1722893250116,-174.55144815,0.00021011,2]
[334285735,1722893250137,-154.71377951,0.00021011,2]
[334285736,1722893250319,-158.91248787,0.00021011,2]
[334285737,1722893250340,-156.73199194,0.00021011,2]
[334285738,1722893250362,-159.25334668,0.00021048,2]
[334285739,1722893250383,-2397.7442972,0.00021161,2]
[334285740,1722893250405,-310.37449817,0.00021238,2]
[334285741,1722893251097,-856.99522997,0.00021238,2]
[334285742,1722893251121,-500.0,0.00021338,2]
[334285743,1722893251143,-500.0,0.00021338,2]
[334285744,1722893251165,-504.02155593,0.00021338,2]
[334285745,1722893251188,-500.0,0.00021338,2]
[334285746,1722893251209,-500.0,0.00021338,2]
[334285747,1722893251232,-500.0,0.00021338,2]
[334285748,1722893251253,-500.0,0.00021338,2]
[334285749,1722893251275,-500.0,0.00021338,2]
[334285750,1722893251297,-500.0,0.00021338,2]
[334285751,1722893251318,-500.0,0.00021338,2]
[334285752,1722893251340,-272.36951924,0.00021338,2]
[334285753,1722893347129,-158.554266,0.00014247,2]
[334285754,1722893347151,-912.4763458,0.00015,2]
[334285755,1722893355107,-152.14926918,0.00019477,2]
[334285757,1722893357102,-956.73801955,0.00019477,2]
[334285758,1722893357124,-154.9143528,0.0002,2]
[334285759,1722893357146,-227.709816,0.00020001,2]
[334285760,1722893357167,-154.54409492,0.00021011,2]
[334285761,1722893357189,-363.44734565,0.00021231,2]
[334285762,1722893357212,-300.0,0.00021337,2]
[334285763,1722893357235,-300.0,0.00021337,2]
[334285764,1722893357257,-3911.9944656,0.00021338,2]
[334285765,1722893366113,-156.95333335,0.00019477,2]
[334285766,1722893366135,-153.96178128,0.00021338,2]
[334285767,1722893370126,-115.06700609,0.00021338,2]
[334285768,1722893370148,-2395.09747727,0.00021338,2]
[334285769,1722893370168,-4330.07384426,0.00021338,2]
[334285770,1722893370189,-154.54409492,0.00021338,2]
[334285771,1722893370210,-160.200956,0.00021373,2]
[334285772,1722893370237,-500.0,0.00021498,2]
[334285773,1722893370259,-500.0,0.00021498,2]
[334285774,1722893370280,-500.0,0.00021498,2]
[334285775,1722893370300,-500.0,0.00021498,2]
[334285776,1722893370322,-500.0,0.00021498,2]
[334285777,1722893370344,-500.0,0.00021498,2]
[334285778,1722893370365,-500.0,0.00021498,2]
[334285779,1722893370386,-500.0,0.00021498,2]
[334285780,1722893370407,-500.0,0.00021498,2]
[334285781,1722893370427,-500.0,0.00021498,2]
[334285782,1722893370447,-500.0,0.00021498,2]
[334285783,1722893370468,-377.31852004,0.00021498,2]
[334285784,1722893370492,-227.63048076,0.00021498,2]
[334285785,1722893370513,-500.0,0.00021498,2]
[334285786,1722893370534,-500.0,0.00021498,2]
[334285787,1722893370556,-500.0,0.00021498,2]
[334285788,1722893370580,-500.0,0.00021498,2]
[334285789,1722893370602,-500.0,0.00021498,2]
[334285790,1722893370624,-500.0,0.00021498,2]
[334285791,1722893370646,-254.06176322,0.00021498,2]
[334285792,1722893370670,-500.0,0.00021498,2]
[334285793,1722893370691,-500.0,0.00021498,2]
[334285794,1722893370712,-220.6457834,0.00021498,2]
[334285795,1722893370733,-500.0,0.00021498,2]
[334285796,1722893370753,-344.07928737,0.00021498,2]
[334285797,1722893370774,-352.89137415,0.00021498,2]
[334285798,1722893370797,-24900.0,0.00021499,2]
[334285799,1722893370817,-154.54409492,0.00021906,2]
[334285800,1722893370838,-1391.37238775,0.00021916,2]
[334285801,1722893370859,-951.80625463,0.00021916,2]
[334285802,1722893370879,-178.77035965,0.00021916,2]
[334285803,1722893370900,-1280.83587776,0.00021916,2]
[334285804,1722893370921,-154.79083498,0.00021916,2]
[334285805,1722893370941,-198.3012351,0.00021916,2]
[334285806,1722893370961,-1201.29683632,0.00022993,2]
[334285807,1722893370980,-1722.03311382,0.00023,2]
[334285808,1722893371001,-1978.3651736,0.00023019,2]
[334285809,1722893371022,-4374.40302407,0.00024,30]
[334285810,1722893371043,-881.47696693,0.00024027,2]
[334285811,1722893371065,-160.54991199,0.00024049,2]
[334285812,1722893371085,-649.06484182,0.00024143,2]
[334285813,1722893371105,-200.0,0.00024658,15]
[334285814,1722893371125,-402.3465429,0.00025,2]
[334285815,1722893371146,-4133.69614548,0.00025,30]
[334285816,1722893371167,-299.20555684,0.00025,2]
[334285817,1722893371188,-664.42034805,0.00025,2]
[334285818,1722893371209,-2587.92658521,0.00025879,2]
[334285819,1722893371230,-1000.5,0.00026,31]
[334285820,1722893371251,-1127.5,0.00026,31]
[334285821,1722893371272,-150.112233,0.00026,6]
[334285822,1722893371293,-2587.92658517,0.00026355,2]
[334285823,1722893371316,-6772.95750073,0.0002658,3]
[334285824,1722893372150,-251.44190693,0.00021906,2]
[334285825,1722893372174,-5317.02999212,0.0002658,3]
[334285826,1722893374162,-242.0654442,0.0002658,3]
[334285861,1722893431887,-154.72911304,0.00021916,2]
[334285862,1722893431896,-1940.74314858,0.00024241,10]
[334285875,1722893437904,-61.66329842,0.00024241,10]
[334285876,1722893437914,-250.0,0.00025385,2]
[334285877,1722893437923,-166.57573317,0.00025864,2]
[334285878,1722893437933,-1019.01680649,0.00025864,2]
[334285879,1722893437942,-154.54409492,0.00025864,2]
[334285880,1722893437951,-881.47696693,0.00025864,2]
[334285881,1722893437961,-160.54991199,0.00025864,2]
[334285882,1722893437970,-326.8577515,0.00025864,2]
[334285883,1722893437979,-4181.02325297,0.00025864,2]
[334285884,1722893437989,-154.54409492,0.00025864,2]
[334285885,1722893437998,-4181.02325297,0.00025864,2]
[334285886,1722893438011,-121.39029015,0.0002658,3]
[334285887,1722893438024,-300.0,0.00026598,2]
[334285888,1722893438034,-503.64,0.000266,31]
[334285889,1722893438044,-503.64,0.000266,31]
[334285890,1722893438054,-503.64,0.000266,31]
[334285891,1722893438064,-503.64,0.000266,31]
[334285892,1722893438074,-503.64,0.000266,31]
[334285893,1722893438084,-503.64,0.000266,31]
[334285894,1722893438093,-503.64,0.000266,31]
[334285895,1722893438103,-503.64,0.000266,31]
[334285896,1722893438112,-503.64,0.000266,31]
[334285897,1722893438122,-503.64,0.000266,31]
[334285898,1722893438131,-503.64,0.000266,31]
[334285899,1722893438141,-503.64,0.000266,31]
[334285900,1722893438150,-503.64,0.000266,31]
[334285901,1722893438160,-503.64,0.000266,31]
[334285903,1722893438169,-503.64,0.000266,31]
[334285905,1722893438179,-503.64,0.000266,31]
[334285907,1722893438188,-503.64,0.000266,31]
[334285909,1722893438198,-503.64,0.000266,31]
[334285911,1722893438208,-503.64,0.000266,31]
[334285914,1722893438218,-503.64,0.000266,31]
[334285916,1722893438229,-150.112233,0.000266,5]
[334285917,1722893438238,-154.54409492,0.00026604,2]
[334285918,1722893438247,-417.11797369,0.00026618,2]
[334285919,1722893438256,-316.00880971,0.00026618,2]
[334285920,1722893438270,-246.73842038,0.00026618,2]
[334285921,1722893438280,-153.03539112,0.00026618,2]
[334285922,1722893438294,-12453.4432272,0.00026619,3]
[334285923,1722893438304,-1021.44851207,0.0002689,2]
[334285924,1722893438314,-3430.49150029,0.0002699,3]
[334285925,1722893438605,-9022.95172691,0.0002699,3]
[334285926,1722893438616,-7481.13801644,0.0002699,3]
[334285929,1722893440064,-20927.72198356,0.0002699,3]
[334285930,1722893440075,-61285.86981858,0.00027,2]
[334285931,1722893440085,-1552.75595111,0.000271,2]
[334285932,1722893440096,-150.112233,0.000272,9]
[334285933,1722893440106,-282.0,0.00027835,120]
[334285934,1722893440115,-150.5,0.00027842,120]
[334285935,1722893440129,-282.0,0.00027845,120]
[334285936,1722893440139,-150.5,0.00027852,120]
[334285937,1722893440149,-150.5,0.00027852,120]
[334285938,1722893440160,-282.0,0.00027855,120]
[334285939,1722893440170,-150.5,0.00027862,120]
[334285940,1722893440180,-172.13,0.00027862,120]
[334285941,1722893440191,-150.5,0.00027862,120]
[334285942,1722893440202,-500.0,0.00027864,2]
[334285943,1722893440213,-500.0,0.00027864,2]
[334285944,1722893440223,-500.0,0.00027864,2]
[334285945,1722893440234,-500.0,0.00027864,2]
[334285946,1722893440244,-500.0,0.00027864,2]
[334285947,1722893440255,-500.0,0.00027864,2]
[334285948,1722893440266,-500.0,0.00027864,2]
[334285949,1722893440276,-152.19323443,0.00027864,2]
[334285950,1722893440286,-174348.205181,0.00027865,3]
[334285951,1722893440296,-1000.0,0.00027871,10]
[334285952,1722893440307,-150.5,0.00027872,120]
[334285953,1722893440316,-8567.88381465,0.00027875,21]
[334285954,1722893440327,-2616.29985401,0.00027875,21]
[334285955,1722893440337,-53888.14415913,0.00027875,30]
[334285957,1722893441328,-1552.7559511,0.00027271,2]
[334285958,1722893441339,-131321.60871533,0.00027875,30]
[334285959,1722893441351,-149788.19495632,0.00027875,30]
[334285960,1722893441363,-5766.22650001,0.00027875,30]
[334285994,1722893442858,-1552.7559511,0.00027441,2]
[334285995,1722893442868,-49114.7120476,0.00027875,30]
[334286005,1722893443195,-3299.9,0.00027875,30]
[334286006,1722893443207,-341.93999988,0.00027875,30]
[334286009,1722893446848,-2039.82286284,0.00025,30]
[334286010,1722893446858,-1053.25264858,0.00027612,2]
[334286011,1722893446870,-499.50330252,0.00027612,2]
[334286012,1722893446879,-1552.7559511,0.00027782,2]
[334286013,1722893446888,-270647.12329322,0.00027875,30]
[334286014,1722893447218,-567.13874108,0.00027875,30]
[334286015,1722893447230,-520.430295,0.00027875,30]
[334286016,1722893447242,-4079.85030908,0.00027875,30]
[334286035,1722894338141,-207.238394,0.00014247,2]
[334286036,1722894338164,-1223.37270646,0.00020402,2]
[334286037,1722894428442,-250.0,0.00019656,2]
[334286038,1722894428466,-17.2484665,0.00019945,2]
[334286039,1722894428494,-191.3133775,0.00019945,2]
[334286040,1722894428514,-175.95369124,0.00019999,2]
[334286041,1722894428535,-208.561844,0.0002,2]
[334286042,1722894428557,-208.561844,0.00020055,2]
[334286043,1722894428578,-208.561844,0.0002011,2]
[334286044,1722894428599,-208.561844,0.00020164,2]
[334286045,1722894428619,-208.561844,0.00020219,2]
[334286046,1722894428641,-208.561844,0.00020274,2]
[334286047,1722894428661,-22.62338496,0.0002028,2]
[334286048,1722894440099,-509.51747512,0.0002028,2]
[334286049,1722894440119,-155.06546205,0.0002028,2]
[334286050,1722894440142,-296.82937311,0.0002028,2]
[334286051,1722894440164,-453.44665482,0.0002028,2]
[334286052,1722894441093,-421.33418541,0.0002028,2]
[334286053,1722894441116,-208.561844,0.00020328,2]
[334286054,1722894441139,-208.561844,0.00020383,2]
[334286055,1722894441161,-300.0,0.00020401,2]
[334286056,1722894441181,-300.0,0.00020401,2]
[334286057,1722894441201,-1597.87324072,0.00020402,2]
[334286058,1722894441229,-178.75405282,0.00020402,2]
[334286059,1722894441249,-154.54409492,0.00020402,2]
[334286060,1722894441270,-211.79091082,0.00020402,4]
[334286061,1722894441290,-970.29285273,0.00020402,2]
[334286062,1722894549196,-1763.49757797,0.00019999,2]
[334286063,1722894549219,-300.0,0.00020279,2]
[334286064,1722894549252,-300.0,0.00020279,2]
[334286065,1722894549274,-1794.59755427,0.0002028,2]
[334286066,1722894549300,-154.79103211,0.0002028,2]
[334286067,1722894549322,-104.96554184,0.00020402,2]
[334286068,1722894549346,-508.74404664,0.00020402,2]
[334286069,1722894549367,-154.54409492,0.00020402,2]
[334286070,1722894549389,-1185.5525,0.00020402,2]
[334286071,1722894549411,-912.4763458,0.00020402,2]
[334286072,1722894549432,-210.68435147,0.00020402,2]
[334286073,1722894549455,-324.60775045,0.00020402,2]
[334286074,1722894549476,-4181.02325297,0.00020402,2]
[334286075,1722894549497,-1239.69729321,0.00020402,2]
[334286076,1722894549518,-1874.7478806,0.00020418,2]
[334286077,1722894549541,-208.561844,0.00020438,2]
[334286078,1722894549564,-208.561844,0.00020493,2]
[334286079,1722894549586,-500.0,0.00020518,2]
[334286080,1722894549608,-500.0,0.00020518,2]
[334286081,1722894549630,-500.0,0.00020518,2]
[334286082,1722894549654,-500.0,0.00020518,2]
[334286083,1722894549678,-500.0,0.00020518,2]
[334286084,1722894549700,-500.0,0.00020518,2]
[334286085,1722894549722,-500.0,0.00020518,2]
[334286086,1722894549745,-377.84499862,0.00020518,2]
[334286087,1722894549767,-500.0,0.00020518,2]
[334286088,1722894549788,-341.33391579,0.00020518,2]
[334286089,1722894549811,-500.0,0.00020518,2]
[334286090,1722894549832,-500.0,0.00020518,2]
[334286091,1722894549855,-500.0,0.00020518,2]
[334286092,1722894549876,-369.20099117,0.00020518,2]
[334286093,1722894550037,-500.0,0.00020518,2]
[334286094,1722894550060,-518.87141673,0.00020518,2]
[334286095,1722894550085,-500.0,0.00020518,2]
[334286096,1722894550110,-620.0,0.00020518,2]
[334286097,1722894550130,-191.05642641,0.00020518,2]
[334286098,1722894550152,-500.0,0.00020518,2]
[334286099,1722894550175,-500.0,0.00020518,2]
[334286100,1722894550197,-500.0,0.00020518,2]
[334286101,1722894550219,-500.0,0.00020518,2]
[334286102,1722894550240,-500.0,0.00020518,2]
[334286103,1722894550262,-500.0,0.00020518,2]
[334286104,1722894550284,-500.0,0.00020518,2]
[334286105,1722894550306,-500.0,0.00020518,2]
[334286106,1722894550332,-500.0,0.00020518,2]
[334286107,1722894550352,-500.0,0.00020518,2]
[334286108,1722894550374,-500.0,0.00020518,2]
[334286109,1722894550395,-500.0,0.00020518,2]
[334286110,1722894550417,-500.0,0.00020518,2]
[334286111,1722894550439,-500.0,0.00020518,2]
[334286112,1722894550460,-500.0,0.00020518,2]
[334286113,1722894550481,-500.0,0.00020518,2]
[334286114,1722894550517,-500.0,0.00020518,2]
[334286115,1722894550538,-500.0,0.00020518,2]
[334286116,1722894550560,-500.0,0.00020518,2]
[334286117,1722894550581,-500.0,0.00020518,2]
[334286118,1722894550601,-391.18259104,0.00020518,2]
[334286119,1722894550621,-500.0,0.00020518,2]